bitfinex-derivatives/quotes_BTCF0:USTF0_20250811
["timestamp","ask_amount","ask_price","bid_price","bid_amount"]
[1754950633449,0.1222,118780.0,118770.0,0.9063034]
[1754950633651,0.1222,118780.0,118770.0,1.21406256]
[1754950634851,0.5671862,118780.0,118770.0,1.21406256]
[1754950635048,0.1222,118780.0,118770.0,1.21406256]
[1754950635254,0.5671862,118780.0,118770.0,0.9063034]
[1754950635550,0.5671862,118780.0,118770.0,1.21406256]
[1754950636943,0.2063862,118780.0,118770.0,1.21406256]
[1754950637446,0.5671862,118780.0,118770.0,1.21406256]
[1754950638251,0.2063862,118780.0,118770.0,1.21406256]
[1754950638850,0.2063862,118780.0,118770.0,0.9062634]
[1754950639550,0.2063862,118780.0,118770.0,1.18994256]
[1754950639757,0.5671862,118780.0,118770.0,0.40742256]
[1754950639950,0.5671862,118780.0,118770.0,1.21252256]
[1754950640253,0.5671862,118780.0,118770.0,0.9047634]
[1754950640755,1.06360065,118780.0,118770.0,0.8668132]
[1754950641455,1.06360065,118780.0,118770.0,0.0001]
[1754950641647,1.06360065,118780.0,118770.0,0.78258]
[1754950641852,1.06360065,118780.0,118770.0,0.8667731]
[1754950643246,1.06360065,118780.0,118770.0,0.8825231]
[1754950643660,0.75584149,118780.0,118770.0,0.8825231]
[1754950646561,0.58596749,118780.0,118770.0,1.21286226]
[1754950646859,0.58596749,118780.0,118770.0,0.9051031]
[1754950647250,0.58596749,118780.0,118770.0,0.8825231]
[1754950648258,0.89372665,118780.0,118770.0,0.8825631]
[1754950648458,0.89372665,118780.0,118770.0,0.8825231]
[1754950648658,1.03382665,118780.0,118770.0,0.8825231]
[1754950649559,0.72606749,118780.0,118770.0,0.8825231]
[1754950649758,1.03382665,118780.0,118770.0,0.8825231]
[1754950651362,1.03382665,118780.0,118770.0,0.9051031]
[1754950652858,1.015021,118780.0,118770.0,0.9051031]
[1754950654158,1.03378181,118780.0,118770.0,0.9051031]
[1754950656466,1.015021,118780.0,118770.0,0.9051031]
[1754950657366,1.03374582,118780.0,118770.0,0.9051031]
[1754950658464,1.03374582,118780.0,118770.0,0.1226231]
[1754950658765,1.03374582,118780.0,118770.0,0.9051031]
[1754950661067,1.03374582,118780.0,118770.0,0.8825231]
[1754950661573,1.03374582,118780.0,118770.0,0.79833]
[1754950661772,1.03374582,118780.0,118770.0,0.79829]
[1754950662677,1.03374582,118780.0,118770.0,0.8824832]
[1754950663663,0.72598666,118780.0,118770.0,0.8824832]
[1754950663969,1.03374582,118780.0,118770.0,0.9050632]
[1754950664264,1.03374582,118780.0,118770.0,0.1226232]
[1754950664471,1.03374582,118780.0,118770.0,0.8824832]
[1754950664769,1.03374582,118780.0,118770.0,0.1000432]
[1754950664969,1.03374582,118780.0,118770.0,0.8824832]
[1754950665469,0.72598666,118780.0,118770.0,0.9050632]
[1754950665870,1.03374582,118780.0,118770.0,0.9050632]
[1754950666071,0.70726184,118780.0,118770.0,0.9050632]
[1754950666367,0.70726184,118780.0,118770.0,1.23017824]
[1754950666368,0.00456564,118780.0,118770.0,1.23017824]
[1754950666571,0.0031,118780.0,118770.0,1.59097824]
[1754950666869,0.58391336,118810.0,118800.0,0.084172]
[1754950667073,0.63402883,118810.0,118800.0,0.904262]
[1754950667666,0.54986393,118810.0,118800.0,0.904262]
[1754950667971,0.54996393,118810.0,118800.0,0.904362]
[1754950668168,0.36236547,118810.0,118800.0,1.22917729]
[1754950668368,0.39536547,118810.0,118800.0,1.22917729]
[1754950668868,0.39536547,118810.0,118800.0,0.92141813]
[1754950669068,0.39536547,118810.0,118800.0,1.22917729]
[1754950669570,0.47953027,118810.0,118800.0,1.22917729]
[1754950669759,0.56584027,118810.0,118800.0,1.22917729]
[1754950670164,0.56584027,118810.0,118800.0,0.92141813]
[1754950671978,0.56584027,118810.0,118800.0,0.92977791]
[1754950672272,0.56584027,118810.0,118800.0,1.23753707]
[1754950673871,0.36236547,118810.0,118800.0,1.54529623]
[1754950674177,0.36236547,118810.0,118800.0,1.23753707]
[1754950674367,0.38608547,118810.0,118800.0,1.23753707]
[1754950674770,0.47025037,118810.0,118800.0,1.23753707]
[1754950675273,0.47025027,118810.0,118800.0,1.23753707]
[1754950675470,0.47025027,118810.0,118800.0,1.23729707]
[1754950675872,0.48493027,118810.0,118800.0,0.92953791]
[1754950676071,0.49482027,118810.0,118800.0,1.23729707]
[1754950676277,0.41065547,118810.0,118800.0,0.92953791]
[1754950676476,0.41065547,118810.0,118800.0,1.23729707]
[1754950676776,0.38608547,118810.0,118800.0,1.23729707]
[1754950677877,0.47025027,118810.0,118800.0,0.92953791]
[1754950678079,0.47025027,118810.0,118800.0,1.23729707]
[1754950678380,0.52842027,118810.0,118800.0,1.23729707]
[1754950678681,0.44425547,118810.0,118800.0,1.23729707]
[1754950679176,0.38608547,118810.0,118800.0,1.23729707]
[1754950679572,0.38608547,118810.0,118800.0,0.92953791]
[1754950679777,0.38608547,118810.0,118800.0,1.23729707]
[1754950681081,0.47025047,118810.0,118800.0,1.23729707]
[1754950681273,0.55029047,118810.0,118800.0,1.23729707]
[1754950681679,0.56603047,118810.0,118800.0,1.23729707]
[1754950683583,0.20523047,118810.0,118800.0,1.23729707]
[1754950683780,0.56603047,118810.0,118800.0,1.23729707]
[1754950683975,0.56603047,118810.0,118800.0,0.45509707]
[1754950684287,0.56603047,118810.0,118800.0,1.23869707]
[1754950684881,0.56603047,118810.0,118800.0,0.93093791]
[1754950685186,0.87378963,118810.0,118800.0,0.90891791]
[1754950685372,0.56603047,118810.0,118800.0,1.23857707]
[1754950687883,0.56603047,118810.0,118800.0,0.93081791]
[1754950688689,0.0841792,118790.0,118780.0,0.0841823]
[1754950688874,0.0841863,118780.0,118770.0,0.10154408]
[1754950689079,0.87224546,118780.0,118770.0,0.90122408]
[1754950689280,0.2036863,118780.0,118770.0,0.90122408]
[1754950689486,0.5644863,118780.0,118770.0,0.92312408]
[1754950689684,0.2036863,118780.0,118770.0,0.92312408]
[1754950689886,0.2036863,118780.0,118770.0,0.93157182]
[1754950690184,0.2037863,118780.0,118770.0,0.93167182]
[1754950690781,0.2037863,118780.0,118770.0,0.93367182]
[1754950691881,0.5645863,118780.0,118770.0,0.93367182]
[1754950692693,0.87234546,118780.0,118770.0,0.14206408]
[1754950692985,0.87234546,118780.0,118770.0,0.0021]
[1754950693188,0.87234546,118780.0,118770.0,0.8690534]
[1754950694186,0.87234546,118780.0,118770.0,0.8670534]
[1754950699796,0.5645863,118780.0,118770.0,0.8670534]
[1754950699993,0.87234546,118780.0,118770.0,0.8670534]
[1754950700179,0.87234546,118780.0,118770.0,0.8834234]
[1754950701593,0.87234546,118780.0,118770.0,0.78286]
[1754950701896,0.87234546,118780.0,118770.0,0.8666533]
[1754950702189,0.87234546,118780.0,118770.0,0.78246]
[1754950702388,0.87234546,118780.0,118770.0,0.0001]
[1754950702585,0.87234546,118780.0,118770.0,0.78246]
[1754950703594,1.01214546,118780.0,118770.0,0.78246]
[1754950706389,1.01214546,118780.0,118770.0,0.0001]
[1754950706696,1.01214546,118780.0,118750.0,0.0842075]
[1754950706697,0.3368195,118760.0,118750.0,0.0842075]
[1754950706891,0.0842075,118750.0,118740.0,0.0842137]
[1754950707097,0.93722512,118750.0,118740.0,0.8829837]
[1754950708099,0.93722512,118750.0,118740.0,0.9048837]
[1754950708299,0.93732512,118750.0,118740.0,0.9049837]
[1754950709092,0.62956596,118750.0,118740.0,0.9059837]
[1754950709600,0.62956596,118750.0,118740.0,0.9060237]
[1754950710200,0.62956596,118750.0,118740.0,0.9070237]
[1754950712392,0.62956596,118750.0,118740.0,0.1245837]
[1754950712590,0.62956596,118750.0,118740.0,0.9070637]
[1754950714500,0.62956596,118750.0,118740.0,0.1245837]
[1754950714705,0.62956596,118750.0,118740.0,0.9070637]
[1754950716200,0.93732512,118750.0,118740.0,0.0021]
[1754950716500,0.93732512,118750.0,118710.0,0.00838035]
[1754950716501,0.0842288,118720.0,118710.0,0.00838035]
[1754950716696,0.0842359,118710.0,118700.0,0.29160351]
[1754950717002,0.5634259,118710.0,118700.0,1.09049351]
[1754950717394,0.5634259,118710.0,118700.0,0.61573267]
[1754950717703,0.5634259,118710.0,118700.0,1.39825267]
[1754950718003,0.5635259,118710.0,118700.0,0.61583267]
[1754950718200,0.5635259,118710.0,118700.0,1.40673974]
[1754950718404,0.5635259,118710.0,118700.0,1.41173974]
[1754950718997,0.5635259,118710.0,118700.0,1.41073974]
[1754950719206,0.5635259,118710.0,118700.0,0.31207351]
[1754950719408,0.5635259,118710.0,118700.0,1.09459351]
[1754950719703,0.5635259,118710.0,118700.0,1.09455351]
[1754950719907,0.5635259,118710.0,118700.0,1.09463351]
[1754950720304,0.5635259,118710.0,118700.0,1.0557533]
[1754950720500,0.87128506,118710.0,118700.0,0.02047]
[1754950720705,0.87128506,118710.0,118700.0,0.0041]
[1754950720905,0.5635259,118710.0,118700.0,0.0041]
[1754950721210,0.87128506,118710.0,118700.0,0.0041]
[1754950721597,0.87128506,118710.0,118700.0,0.0001]
[1754950724198,0.87959381,118710.0,118700.0,0.0001]
[1754950725901,1.66231381,118710.0,118700.0,0.0001]
[1754950733707,1.80211381,118710.0,118700.0,0.0001]
[1754950735204,0.0842499,118690.0,118680.0,0.866894]
[1754950735405,0.084257,118680.0,118670.0,1.0]
[1754950735603,0.87049616,118680.0,118670.0,1.0]
[1754950736009,0.87049616,118680.0,118670.0,1.0842641]
[1754950736212,0.87049616,118680.0,118670.0,1.0001]
[1754950736412,0.87059616,118680.0,118670.0,1.0002]
[1754950736913,0.87059616,118680.0,118670.0,1.0041]
[1754950737212,0.87059616,118680.0,118670.0,1.0071]
[1754950738115,1.17835532,118680.0,118670.0,1.0071]
[1754950738314,1.20259797,118680.0,118670.0,1.0071]
[1754950738513,1.03463881,118680.0,118670.0,1.0071]
[1754950738914,1.10253894,118680.0,118670.0,1.0071]
[1754950740014,0.79477978,118680.0,118670.0,1.0071]
[1754950740520,1.07829629,118680.0,118670.0,1.0291]
[1754950740822,1.07829629,118680.0,118670.0,0.0291]
[1754950741015,1.07829629,118680.0,118670.0,0.02319]
[1754950741717,1.07829629,118680.0,118670.0,0.1074541]
[1754950742121,1.07829629,118680.0,118670.0,0.02319]
[1754950742415,1.07829629,118680.0,118670.0,0.0071]
[1754950742920,1.07829629,118680.0,118670.0,0.0072]
[1754950743324,1.07829629,118680.0,118670.0,0.0071]
[1754950744209,1.10244,118680.0,118670.0,0.0071]
[1754950745122,1.07829629,118680.0,118670.0,0.0071]
[1754950745324,1.10238656,118680.0,118670.0,0.0071]
[1754950745920,1.41014572,118680.0,118670.0,0.0071]
[1754950746721,1.10238656,118680.0,118670.0,0.0071]
[1754950747221,0.7946274,118680.0,118670.0,0.0071]
[1754950747427,1.10238656,118680.0,118670.0,0.0071]
[1754950750517,1.41014572,118680.0,118670.0,0.0071]
[1754950750917,0.7946274,118680.0,118670.0,0.0071]
[1754950751120,1.10238656,118680.0,118670.0,0.0071]
[1754950752618,1.88526656,118680.0,118670.0,0.02303]
[1754950753420,1.88526656,118680.0,118670.0,0.0071]
[1754950754020,1.5775074,118680.0,118670.0,0.0071]
[1754950754221,1.88526656,118680.0,118670.0,0.0071]
[1754950757025,1.5775074,118680.0,118670.0,0.0071]
[1754950757225,1.88526656,118680.0,118670.0,0.0071]
[1754950758922,1.86117629,118680.0,118670.0,0.0071]
[1754950759123,1.88510894,118680.0,118670.0,0.0071]
[1754950759322,1.86117629,118680.0,118670.0,0.0071]
[1754950759918,1.88511233,118680.0,118670.0,0.0071]
[1754950760120,0.0842713,118660.0,118650.0,0.9513951]
[1754950760322,0.0842855,118640.0,118630.0,0.3541984]
[1754950760520,0.51303466,118640.0,118630.0,0.2196364]
[1754950761231,0.5660755,118640.0,118630.0,0.2415364]
[1754950761434,0.87393466,118640.0,118630.0,0.2416364]
[1754950762927,0.87393466,118640.0,118630.0,0.2486364]
[1754950763130,0.87393466,118640.0,118630.0,0.1424466]
[1754950763428,1.18169382,118640.0,118630.0,0.0001]
[1754950763627,1.20026222,118640.0,118630.0,0.0001]
[1754950763820,2.39250306,118640.0,118630.0,0.0001]
[1754950764517,3.17534306,118640.0,118630.0,0.0001]
[1754950764721,0.0842997,118620.0,118610.0,1.4251989]
[1754950764930,0.51304886,118620.0,118610.0,1.0429589]
[1754950765130,0.2052897,118620.0,118610.0,1.0429589]
[1754950765321,0.2052897,118620.0,118610.0,1.0648589]
[1754950765521,0.27188225,118620.0,118610.0,1.0648589]
[1754950766128,0.27188225,118620.0,118610.0,1.0668589]
[1754950766329,0.27198225,118620.0,118610.0,1.0669589]
[1754950766528,0.27198225,118620.0,118610.0,1.05558943]
[1754950766730,0.57974141,118620.0,118610.0,1.05558943]
[1754950767022,0.57974141,118620.0,118610.0,1.0470589]
[1754950767821,0.57974141,118620.0,118610.0,0.0884063]
[1754950768028,0.57974141,118620.0,118610.0,0.9053463]
[1754950768427,0.57974141,118620.0,118610.0,0.9272463]
[1754950768630,0.27198225,118620.0,118610.0,0.9272463]
[1754950768827,0.57974141,118620.0,118610.0,0.9272463]
[1754950770833,0.57974141,118620.0,118610.0,0.1443263]
[1754950771033,0.57974141,118620.0,118610.0,0.03812]
[1754950771234,0.57974141,118620.0,118610.0,0.0041]
[1754950771625,0.0843068,118610.0,118600.0,0.0072]
[1754950771833,0.084321,118590.0,118580.0,0.168752]
[1754950772129,0.205311,118590.0,118580.0,0.1184453]
[1754950772323,0.156921,118590.0,118580.0,0.1184453]
[1754950772529,0.205311,118590.0,118580.0,0.1403453]
[1754950773738,0.205311,118590.0,118580.0,0.1453453]
[1754950774037,0.205411,118590.0,118580.0,0.1454453]
[1754950774428,0.2054106,118590.0,118580.0,0.1454453]
[1754950775132,0.2054106,118590.0,118580.0,0.1494453]
[1754950777431,0.0001,118590.0,118580.0,0.45720446]
[1754950777638,0.0001,118590.0,118580.0,0.62586046]
[1754950777938,0.0001,118590.0,118580.0,0.98666046]
[1754950778740,0.2772415,118610.0,118600.0,0.0843134]
[1754950778937,0.3739215,118610.0,118600.0,0.9030534]
[1754950779443,0.3739215,118610.0,118600.0,0.8690334]
[1754950779642,0.0843134,118600.0,118590.0,1.0377095]
[1754950779832,0.87386256,118600.0,118590.0,0.79196]
[1754950780139,0.87396256,118600.0,118590.0,0.78498]
[1754950780438,0.87396256,118600.0,118590.0,0.0001]
[1754950780836,0.87396256,118600.0,118590.0,0.0031]
[1754950781240,0.5662034,118600.0,118590.0,0.0031]
[1754950781437,0.87396256,118600.0,118590.0,0.0874205]
[1754950781828,0.5662034,118600.0,118590.0,0.0904205]
[1754950782032,0.87396256,118600.0,118590.0,0.0904205]
[1754950782233,0.87396256,118600.0,118590.0,0.0061]
[1754950783140,1.18172172,118600.0,118590.0,0.0061]
[1754950783642,0.0843205,118590.0,118580.0,0.0001]
[1754950783843,0.87386966,118590.0,118580.0,0.0001]
[1754950784232,1.66002966,118590.0,118580.0,0.0001]
[1754950784945,1.3522705,118590.0,118580.0,0.0031]
[1754950785143,1.66012966,118590.0,118580.0,0.0032]
[1754950785529,0.0843277,118580.0,118560.0,1.039263]
[1754950785742,0.87388396,118570.0,118560.0,0.968222]
[1754950785938,0.5661248,118570.0,118560.0,0.968222]
[1754950786240,0.87388396,118570.0,118560.0,0.968222]
[1754950786442,0.87388396,118570.0,118560.0,0.983522]
[1754950786634,0.87388396,118570.0,118560.0,0.9920481]
[1754950786833,0.2054248,118570.0,118560.0,1.0134281]
[1754950787035,0.2054248,118570.0,118560.0,1.0372281]
[1754950787636,0.2054248,118570.0,118560.0,1.0382281]
[1754950788732,0.1570348,118570.0,118560.0,0.221662]
[1754950788938,0.51218396,118570.0,118560.0,0.243462]
[1754950789241,0.51218396,118570.0,118560.0,0.221662]
[1754950790251,0.87298396,118570.0,118560.0,0.221662]
[1754950790642,0.87398396,118570.0,118560.0,0.220662]
[1754950791444,0.51318396,118570.0,118560.0,0.220662]
[1754950793243,0.2054248,118570.0,118560.0,0.220662]
[1754950793444,0.51318396,118570.0,118560.0,0.220662]
[1754950795547,0.51318396,118570.0,118550.0,1e-08]
[1754950795548,0.0843419,118560.0,118550.0,1e-08]
[1754950795844,0.0843561,118540.0,118530.0,0.2663828]
[1754950796050,0.51060526,118540.0,118530.0,0.2412797]
[1754950796351,0.51060526,118540.0,118530.0,0.1569194]
[1754950796642,0.93981742,118540.0,118530.0,0.1351194]
[1754950796848,0.93991742,118540.0,118530.0,0.1352194]
[1754950797247,0.57911742,118540.0,118530.0,0.1352194]
[1754950797450,0.57911742,118540.0,118530.0,0.1570194]
[1754950797945,0.93991742,118540.0,118530.0,0.05186]
[1754950798149,0.93991742,118540.0,118530.0,0.04376865]
[1754950798450,0.93991742,118540.0,118530.0,0.1149428]
[1754950798648,0.93991742,118540.0,118530.0,0.03058]
[1754950798844,0.95847293,118540.0,118530.0,0.0031]
[1754950799350,0.95847293,118540.0,118530.0,0.0874628]
[1754950799951,0.95847293,118540.0,118530.0,0.1007628]
[1754950800247,0.95847293,118540.0,118530.0,0.1229228]
[1754950800445,0.95847293,118540.0,118530.0,0.1580228]
[1754950800650,0.95847293,118540.0,118530.0,0.1362228]
[1754950801652,0.65071377,118540.0,118530.0,0.085463]
[1754950801852,0.65071377,118540.0,118530.0,0.098763]
[1754950802054,0.95994157,118540.0,118530.0,0.098763]
[1754950802247,0.65218241,118540.0,118530.0,0.114943]
[1754950802549,0.0699808,118540.0,118530.0,0.99531016]
[1754950802739,0.06851216,118540.0,118530.0,0.99531016]
[1754950802947,0.0001,118540.0,118530.0,0.99531016]
[1754950803352,0.0001,118540.0,118530.0,0.687551]
[1754950803552,0.02463,118540.0,118530.0,0.99531016]
[1754950803749,0.2029459,118540.0,118530.0,0.952583]
[1754950804052,0.51070506,118540.0,118530.0,0.896203]
[1754950804352,0.87150506,118540.0,118530.0,0.0011]
[1754950804747,0.084363,118530.0,118520.0,0.79944]
[1754950804947,0.89011828,118530.0,118520.0,0.79944]
[1754950805260,0.0843701,118520.0,118510.0,0.8841769]
[1754950805549,0.5636601,118520.0,118510.0,0.8974769]
[1754950805757,0.87141926,118520.0,118510.0,0.9136569]
[1754950806050,0.87151926,118520.0,118510.0,0.9350369]
[1754950806254,0.2029601,118520.0,118510.0,0.9568369]
[1754950806957,0.5645876,118520.0,118510.0,0.8842769]
[1754950807149,0.9253876,118520.0,118510.0,0.7999]
[1754950807652,0.9273876,118520.0,118510.0,0.0001]
[1754950807850,0.9273876,118520.0,118510.0,0.0844772]
[1754950808556,0.9273876,118520.0,118510.0,0.0001]
[1754950811257,0.5667601,118520.0,118510.0,0.0001]
[1754950811452,0.9273876,118520.0,118510.0,0.0001]
[1754950812845,0.9273876,118520.0,118510.0,0.0844771]
[1754950813242,0.9273876,118520.0,118510.0,0.0001]
[1754950814450,0.9273876,118520.0,118510.0,0.0844771]
[1754950814651,0.9273876,118520.0,118510.0,0.0001]
[1754950816757,0.5667601,118520.0,118510.0,0.0001]
[1754950816956,0.9273876,118520.0,118510.0,0.0001]
[1754950818657,1.0671876,118520.0,118510.0,0.0001]
[1754950820264,0.0843842,118500.0,118490.0,2.23593768]
[1754950820453,0.4926817,118500.0,118490.0,2.23593768]
[1754950820653,0.4926817,118500.0,118490.0,1.08309768]
[1754950820855,0.5650217,118500.0,118490.0,1.08309768]
[1754950821158,0.2043942,118500.0,118490.0,1.08309768]
[1754950821355,0.2044942,118500.0,118490.0,1.08319768]
[1754950821550,0.2044942,118500.0,118490.0,1.10499768]
[1754950822149,0.0001,118500.0,118490.0,1.82642518]
[1754950822345,0.0001,118500.0,118490.0,2.04620918]
[1754950822753,0.0001,118500.0,118490.0,1.24644918]
[1754950822958,0.0001,118500.0,118490.0,2.04540918]
[1754950823154,0.0001,118500.0,118490.0,1.68478168]
[1754950823458,0.2044942,118500.0,118490.0,1.61298168]
[1754950823651,0.0844842,118500.0,118490.0,1.46599768]
[1754950823853,0.1088842,118500.0,118490.0,1.46599768]
[1754950824358,0.2044942,118500.0,118490.0,1.46599768]
[1754950825658,0.03446,118500.0,118490.0,1.46599768]
[1754950825852,0.0001,118500.0,118490.0,1.46599768]
[1754950826053,0.0001,118500.0,118490.0,1.63478168]
[1754950826755,0.0001,118500.0,118490.0,1.94254734]
[1754950827753,0.0001,118500.0,118490.0,1.77376334]
[1754950831157,0.0001,118500.0,118490.0,1.94254734]
[1754950832053,0.0244,118520.0,118490.0,1.77366614]
[1754950832253,0.37950612,118530.0,118520.0,0.08437]
[1754950832460,0.04310612,118530.0,118520.0,1.26197566]
[1754950832654,0.09104612,118530.0,118520.0,0.95421]
[1754950832850,0.10100612,118530.0,118520.0,0.95421]
[1754950833050,0.13871612,118530.0,118520.0,0.95421]
[1754950833362,0.14171612,118530.0,118520.0,0.95421]
[1754950833560,0.14181612,118530.0,118520.0,0.95431]
[1754950834065,0.09387612,118530.0,118520.0,0.95431]
[1754950834267,0.05616612,118530.0,118520.0,0.95431]
[1754950834564,0.05516612,118530.0,118520.0,1.26207566]
[1754950834964,0.04720612,118530.0,118520.0,1.26207566]
[1754950835265,0.12411,118530.0,118520.0,0.95431]
[1754950835867,0.12311,118530.0,118520.0,0.95431]
[1754950837457,0.03746,118530.0,118520.0,0.95431]
[1754950837763,0.0275,118530.0,118520.0,0.95431]
[1754950838156,0.0031,118530.0,118520.0,0.95431]
[1754950838464,0.0275,118530.0,118520.0,0.95431]
[1754950840566,0.1218229,118530.0,118520.0,0.15619]
[1754950840758,0.87603856,118530.0,118520.0,0.93193]
[1754950840959,0.87603856,118530.0,118520.0,0.89531]
[1754950841361,0.87603856,118530.0,118520.0,0.88191]
[1754950841868,0.87603856,118530.0,118520.0,0.91049]
[1754950842771,0.87603856,118530.0,118520.0,0.93193]
[1754950844664,0.87603856,118530.0,118520.0,0.91049]
[1754950845168,0.87603856,118530.0,118520.0,0.0001]
[1754950845169,1.18380422,118530.0,118520.0,0.0001]
[1754950845564,0.87603856,118530.0,118520.0,0.0001]
[1754950846770,1.98016422,118530.0,118520.0,0.0001]
[1754950847071,0.08431251,118520.0,118510.0,0.01740233]
[1754950847265,0.0843914,118490.0,118480.0,0.1419708]
[1754950847461,0.05039,118490.0,118480.0,0.9971608]
[1754950847666,0.1087914,118490.0,118480.0,0.9971608]
[1754950848066,0.0244,118490.0,118480.0,0.9971608]
[1754950848369,0.1088914,118490.0,118480.0,0.9972608]
[1754950848866,0.0245,118490.0,118480.0,0.9972608]
[1754950849059,0.1088914,118490.0,118480.0,0.9972608]
[1754950849265,0.1088914,118490.0,118480.0,0.9992608]
[1754950850271,0.1088914,118490.0,118480.0,1.0012608]
[1754950850668,0.0245,118490.0,118480.0,1.3620608]
[1754950851275,0.1088914,118490.0,118480.0,1.3620608]
[1754950851672,0.0245,118490.0,118480.0,1.3620608]
[1754950851869,0.0001,118490.0,118480.0,1.66982646]
[1754950852170,0.1665214,118490.0,118480.0,1.3625008]
[1754950852669,0.51245706,118490.0,118480.0,0.2051008]
[1754950852867,0.51245706,118490.0,118480.0,1.0017008]
[1754950853068,0.87325706,118490.0,118480.0,0.99223187]
[1754950853666,0.87325706,118490.0,118480.0,0.98010112]
[1754950853874,0.87325706,118490.0,118480.0,0.97053187]
[1754950854268,0.87325706,118490.0,118480.0,0.17373187]
[1754950854469,0.87325706,118490.0,118480.0,0.97041187]
[1754950855169,0.87325706,118490.0,118480.0,0.83322597]
[1754950855372,1.32082272,118490.0,118480.0,0.0041]
[1754950855572,2.11758272,118490.0,118480.0,0.0041]
[1754950856668,0.0844053,118470.0,118460.0,0.1688242]
[1754950856867,0.80083096,118470.0,118460.0,0.1688242]
[1754950857068,0.87317096,118470.0,118460.0,0.1996242]
[1754950857277,0.87317096,118470.0,118460.0,0.2371242]
[1754950857785,0.87317096,118470.0,118460.0,0.1527121]
[1754950858080,0.87327096,118470.0,118460.0,0.1528121]
[1754950858274,0.87527096,118470.0,118460.0,0.0001]
[1754950858464,1.23607096,118470.0,118460.0,0.0001]
[1754950858670,1.23807096,118470.0,118460.0,0.0001]
[1754950858973,2.03511096,118470.0,118460.0,0.0001]
[1754950859576,2.03511096,118470.0,118460.0,0.0845125]
[1754950860070,0.9303053,118470.0,118460.0,0.0845125]
[1754950860266,1.23807096,118470.0,118460.0,0.1528125]
[1754950860580,1.23807096,118470.0,118460.0,0.0845125]
[1754950861080,0.87727096,118470.0,118460.0,0.1528125]
[1754950861282,0.94569653,118470.0,118460.0,0.1528125]
[1754950861573,0.94569653,118470.0,118460.0,0.0001]
[1754950861773,1.30649653,118470.0,118460.0,0.0001]
[1754950862079,1.30649653,118470.0,118460.0,0.0845123]
[1754950862271,1.30649653,118470.0,118460.0,0.0001]
[1754950862774,1.30649653,118470.0,118460.0,0.0845123]
[1754950863073,0.27713077,118470.0,118460.0,0.1745123]
[1754950863267,0.58489643,118470.0,118460.0,0.1745123]
[1754950863470,0.94569643,118470.0,118460.0,0.0901]
[1754950863672,0.94569643,118470.0,118460.0,0.0001]
[1754950864779,0.96454437,118470.0,118460.0,0.0001]
[1754950865686,1.76394437,118470.0,118460.0,0.0001]
[1754950866775,1.76194437,118470.0,118460.0,0.0845119]
[1754950866973,1.76194437,118470.0,118460.0,0.0011]
[1754950867173,1.76594437,118470.0,118460.0,0.0855119]
[1754950867374,0.96654437,118470.0,118460.0,0.1163119]
[1754950867574,0.96654437,118470.0,118460.0,0.0855119]
[1754950867881,0.96554437,118470.0,118460.0,0.1755119]
[1754950868082,0.65777871,118470.0,118460.0,0.9752319]
[1754950868282,0.29697871,118470.0,118460.0,0.9752319]
[1754950868880,0.96554437,118470.0,118460.0,0.9752319]
[1754950869081,0.55613437,118470.0,118460.0,0.9752319]
[1754950869378,0.60474437,118470.0,118460.0,0.9752319]
[1754950869773,0.96554437,118470.0,118460.0,0.9752319]
[1754950869982,0.96554437,118470.0,118460.0,0.9535319]
[1754950870580,0.96554437,118470.0,118460.0,0.1538119]
[1754950871384,0.96554437,118470.0,118460.0,0.0855119]
[1754950872980,0.94669643,118470.0,118460.0,0.1163119]
[1754950873581,0.94669643,118470.0,118460.0,0.0855119]
[1754950874075,0.94669643,118470.0,118460.0,0.1163119]
[1754950874677,0.94669643,118470.0,118460.0,0.1538119]
[1754950874874,0.96529041,118470.0,118460.0,0.0011]
[1754950875188,0.96529041,118470.0,118430.0,1.09220383]
[1754950875189,0.0844262,118440.0,118430.0,1.09220383]
[1754950875380,0.51239186,118440.0,118430.0,1.00777183]
[1754950876183,0.87319186,118440.0,118430.0,1.00777183]
[1754950876385,0.87329186,118440.0,118430.0,1.00787183]
[1754950876679,0.5655262,118440.0,118430.0,1.00787183]
[1754950877078,0.87329186,118440.0,118430.0,1.03067183]
[1754950877684,0.87429186,118440.0,118430.0,1.03067183]
[1754950877883,0.5665262,118440.0,118430.0,1.03067183]
[1754950878293,0.2057262,118440.0,118430.0,1.03067183]
[1754950878588,0.1591162,118440.0,118430.0,1.03067183]
[1754950879087,0.1374962,118440.0,118430.0,1.03067183]
[1754950879587,0.1209462,118440.0,118430.0,1.39147183]
[1754950879781,0.0875262,118440.0,118430.0,1.69923749]
[1754950880488,0.0875262,118440.0,118430.0,1.39147183]
[1754950880786,0.0031,118440.0,118430.0,1.69923749]
[1754950880978,0.08701955,118470.0,118460.0,0.0844119]
[1754950881177,0.08701955,118470.0,118460.0,1.64904756]
[1754950881790,0.084419,118450.0,118430.0,0.32017751]
[1754950882096,0.41622176,118440.0,118430.0,0.28392164]
[1754950882280,0.41622176,118440.0,118430.0,1.11405164]
[1754950882585,0.47384176,118440.0,118430.0,1.16091164]
[1754950882982,0.41622176,118440.0,118430.0,1.16091164]
[1754950883888,0.1084561,118440.0,118430.0,1.16391164]
[1754950884189,0.41622176,118440.0,118430.0,1.16391164]
[1754950884388,0.41622176,118440.0,118430.0,1.16091164]
[1754950884585,0.85020176,118440.0,118430.0,1.0656488]
[1754950884886,0.92658496,118440.0,118430.0,1.0656488]
[1754950885388,0.92658496,118440.0,118430.0,0.97471825]
[1754950885885,0.56578496,118440.0,118430.0,0.98564521]
[1754950886084,0.1084561,118440.0,118430.0,0.99214596]
[1754950886494,0.1084561,118440.0,118430.0,1.35294596]
[1754950886695,0.7708142,118450.0,118440.0,0.0844261]
[1754950886888,0.0001,118450.0,118440.0,0.1734961]
[1754950887084,0.0001,118450.0,118440.0,0.5342961]
[1754950887389,0.0844261,118440.0,118430.0,0.26441836]
[1754950887692,0.56578496,118440.0,118430.0,1.1314614]
[1754950888092,0.92658496,118440.0,118430.0,1.1314614]
[1754950888281,0.92658496,118440.0,118430.0,1.0470295]
[1754950888988,0.92758496,118440.0,118430.0,1.0470295]
[1754950890092,0.92858496,118440.0,118430.0,1.0470295]
[1754950890686,0.4472261,118440.0,118430.0,1.0667295]
[1754950890894,0.4712561,118440.0,118430.0,1.0667295]
[1754950891099,0.88059496,118440.0,118430.0,1.0667295]
[1754950892094,0.51979496,118440.0,118430.0,1.0667295]
[1754950892494,0.88059496,118440.0,118430.0,1.0667295]
[1754950892794,0.88059496,118440.0,118430.0,1.0469895]
[1754950892795,0.92858496,118440.0,118430.0,1.0469895]
[1754950893291,0.92858496,118440.0,118430.0,0.2384295]
[1754950893495,0.92858496,118440.0,118430.0,1.0466295]
[1754950893994,0.56778496,118440.0,118430.0,1.0663295]
[1754950895091,0.92858496,118440.0,118430.0,1.0663295]
[1754950895298,0.92858496,118440.0,118430.0,1.0465495]